fUSD/lending_fUSD_20251224
["ID","MTS","AMOUNT","RATE_DAILY","PERIOD"]
[399631303,1766575656423,179.07318237,0.00032,120]
[399631304,1766575675130,160.48041173,0.00032,120]
[399631305,1766575681578,300.0,0.00014297,2]
[399631307,1766575688802,1200.0,0.00014297,2]
[399631308,1766575708665,2727.54085448,0.0001,2]
[399631310,1766575718852,4844.21741007,0.0001,2]
[399631311,1766575718876,5988.77499954,0.0001,2]
[399631312,1766575735731,1810.7247,0.00014198,2]
[399631313,1766575741274,300.0,0.00014297,2]
[399631315,1766575747125,-1288.06113207,0.00014298,2]
[399631316,1766575757202,1900.51030046,0.00014205,2]
[399631317,1766575757226,10000.01,0.00014205,2]
[399631318,1766575757250,10000.01,0.00014205,2]
[399631319,1766575757273,239.1994111,0.00014205,2]
[399631320,1766575800575,1244.21357412,0.00014297,5]
[399631321,1766575801237,1200.0,0.00014297,2]
[399631322,1766575801478,300.0,0.00014297,2]
[399631323,1766575803418,150.0,0.00014297,2]
[399631324,1766575803732,268.0,0.00014298,2]
[399631325,1766575807760,500.0,0.00014297,2]
[399631326,1766575808317,6098.59701478,7.945e-05,2]
[399631327,1766575808342,3553.03138722,7.945e-05,2]
[399631328,1766575808407,500.0,0.00014297,2]
[399631329,1766575828139,220.0,0.00032877,120]
[399631337,1766575831532,-1526.40000019,0.00014298,2]
[399631338,1766575831544,-50049.13427201,0.00014298,2]
[399631339,1766575831638,-12068.01493912,0.00014298,2]
[399631340,1766575831650,-62552.91104573,0.00014298,2]
[399631341,1766575831662,-271.90586894,0.00014298,2]
[399631378,1766575837614,-576571.36569602,0.00014298,2]
[399631379,1766575837624,-300.0,0.000143,2]
[399631380,1766575837635,-600.0,0.00014302,2]
[399631381,1766575837645,-300.0,0.00014305,2]
[399631382,1766575837655,-250.0,0.00014305,2]
[399631383,1766575837665,-600.0,0.00014312,2]
[399631384,1766575837675,-300.0,0.00014312,2]
[399631385,1766575837685,-250.0,0.00014319,2]
[399631386,1766575837695,-300.0,0.00014332,2]
[399631387,1766575837705,-500.0,0.00014397,2]
[399631388,1766575837715,-21261.4566,0.00014398,2]
[399631389,1766575837725,-1000.0,0.00014398,2]
[399631390,1766575837734,-500.0,0.00014496,2]
[399631391,1766575837744,-4999.99,0.00014496,2]
[399631392,1766575837757,-150.99,0.00014496,2]
[399631393,1766575837767,-150.99,0.00014496,2]
[399631394,1766575837776,-9999.99,0.00014496,2]
[399631395,1766575837787,-2282.35,0.00014496,2]
[399631396,1766575837798,-2033.81,0.00014496,2]
[399631397,1766575837807,-299.99,0.00014496,2]
[399631398,1766575837817,-333.22,0.00014496,2]
[399631399,1766575837827,-999.99,0.00014496,2]
[399631400,1766575837836,-9999.99,0.00014496,2]
[399631401,1766575837846,-386.65632401,0.00014497,2]
[399631402,1766575837856,-22139.72971147,0.00014504,2]
[399631403,1766575837866,-15928.09017776,0.00014511,2]
[399631404,1766575837876,-928.25173543,0.00014596,2]
[399631406,1766575837885,-150.0,0.00014596,2]
[399631408,1766575837895,-151.0,0.00014647,2]
[399631410,1766575837904,-74194.82225297,0.0001465,2]
[399631412,1766575837914,-263.34853309,0.00014709,2]
[399631414,1766575837923,-22139.72971147,0.00014804,2]
[399631416,1766575837933,-15928.09017776,0.00014809,2]
[399631418,1766575837943,-150.0,0.00014881,2]
[399631420,1766575837953,-13763.6,0.00014906,2]
[399631422,1766575837966,-928.25173543,0.0001498,2]
[399631424,1766575837976,-5014.92,0.00014999,2]
[399631426,1766575837985,-2041.47960317,0.00015,2]
[399631428,1766575837995,-7947.26999932,0.00015,2]
[399631431,1766575838005,-21363.10346556,0.00015,2]
[399631434,1766575838015,-1155.1798605,0.00015,2]
[399631437,1766575838025,-33595.71545948,0.00015,2]
[399631440,1766575838035,-500.0,0.00015037,2]
[399631443,1766575838046,-500.0,0.00015037,2]
[399631445,1766575838057,-500.0,0.00015037,2]
[399631447,1766575838075,-500.0,0.00015037,2]
[399631449,1766575838085,-151.75927975,0.00015037,2]
[399631452,1766575838096,-1000.0,0.00015044,2]
[399631454,1766575838106,-500.0,0.00015045,2]
[399631456,1766575838116,-500.0,0.00015064,2]
[399631458,1766575838126,-511.31387808,0.00015064,2]
[399631460,1766575838137,-500.0,0.00015064,2]
[399631462,1766575838147,-500.0,0.00015064,2]
[399631464,1766575838160,-500.0,0.00015064,2]
[399631465,1766575838171,-2507.51483072,0.00015078,2]
[399631466,1766575838181,-500.0,0.00015092,2]
[399631467,1766575838192,-504.56733337,0.00015092,2]
[399631468,1766575838202,-500.0,0.00015092,2]
[399631469,1766575838213,-22139.72971147,0.00015103,2]
[399631470,1766575838223,-15928.09017776,0.00015108,2]
[399631471,1766575838233,-500.0,0.00015119,2]
[399631472,1766575838243,-154.41523631,0.00015119,2]
[399631473,1766575838254,-645.39200944,0.00015147,2]
[399631474,1766575838265,-500.0,0.00015173,2]
[399631475,1766575838275,-500.0,0.00015173,2]
[399631476,1766575838286,-562.564449,0.00015173,2]
[399631477,1766575838296,-500.08479975,0.00015173,2]
[399631478,1766575838307,-500.0,0.00015173,2]
[399631479,1766575838317,-500.0,0.00015173,2]
[399631480,1766575838327,-167.20691349,0.00015173,2]
[399631481,1766575838338,-500.37919946,0.00015173,2]
[399631482,1766575838348,-500.0,0.00015173,2]
[399631483,1766575838359,-500.0,0.00015173,2]
[399631484,1766575838369,-500.0,0.00015173,2]
[399631485,1766575838379,-500.0,0.00015173,2]
[399631486,1766575838389,-500.0,0.00015173,2]
[399631487,1766575838399,-172.85820104,0.00015173,2]
[399631488,1766575838409,-500.0,0.00015173,2]
[399631489,1766575838420,-516.09973549,0.00015173,2]
[399631490,1766575838431,-500.0,0.00015173,2]
[399631491,1766575838441,-453.84632834,0.00015173,2]
[399631492,1766575838452,-500.0,0.00015173,2]
[399631493,1766575838462,-500.0,0.00015173,2]
[399631494,1766575838472,-500.0,0.00015173,2]
[399631495,1766575838482,-500.0,0.00015173,2]
[399631496,1766575838491,-500.0,0.00015173,2]
[399631497,1766575838500,-500.0,0.00015173,2]
[399631498,1766575838510,-500.0,0.00015173,2]
[399631499,1766575838522,-500.0,0.00015173,2]
[399631500,1766575838532,-500.0,0.00015173,2]
[399631501,1766575838554,-162.2863667,0.00015173,2]
[399631502,1766575838567,-500.0,0.00015173,2]
[399631503,1766575838577,-500.0,0.00015173,2]
[399631504,1766575838588,-500.0,0.00015173,2]
[399631505,1766575838598,-500.0,0.00015173,2]
[399631506,1766575838609,-500.0,0.00015173,2]
[399631507,1766575838618,-500.0,0.00015173,2]
[399631508,1766575838629,-500.0,0.00015173,2]
[399631509,1766575838639,-500.0,0.00015173,2]
[399631510,1766575838650,-500.0,0.00015173,2]
[399631511,1766575838660,-1450.76433169,0.00015204,2]
[399631512,1766575838671,-366.16,0.00015274,2]
[399631513,1766575838682,-378.63310576,0.00015284,2]
[399631514,1766575838692,-152.81357025,0.00015288,2]
[399631515,1766575838703,-150.0,0.00015288,2]
[399631516,1766575838713,-150.0,0.00015288,2]
[399631517,1766575838723,-150.0,0.00015288,2]
[399631518,1766575838734,-150.0,0.00015288,2]
[399631519,1766575838744,-150.0,0.00015288,2]
[399631520,1766575838758,-150.0,0.00015288,2]
[399631521,1766575838768,-150.0,0.00015288,2]
[399631522,1766575838779,-152.31137415,0.00015288,2]
[399631523,1766575838789,-150.0,0.00015288,2]
[399631524,1766575838800,-150.00000001,0.00015288,2]
[399631525,1766575838810,-150.0,0.00015288,2]
[399631526,1766575838821,-150.0,0.00015288,2]
[399631527,1766575838834,-150.0,0.00015288,2]
[399631528,1766575838844,-1517.64,0.000153,2]
[399631529,1766575838854,-322.6107,0.00015311,2]
[399631530,1766575838864,-151.0,0.00015311,2]
[399631531,1766575838875,-578.20924308,0.00015311,2]
[399631532,1766575838885,-543.0,0.00015311,2]
[399631533,1766575838897,-156.587,0.00015311,2]
[399631534,1766575838913,-162.380719,0.00015311,2]
[399631535,1766575838924,-153.82745935,0.00015311,2]
[399631536,1766575838935,-200.0,0.00015311,2]
[399631537,1766575838945,-207.4,0.00015311,2]
[399631538,1766575838957,-215.0738,0.00015311,2]
[399631539,1766575838969,-223.0315306,0.00015311,2]
[399631540,1766575838980,-231.28369723,0.00015311,2]
[399631541,1766575838990,-239.84119403,0.00015311,2]
[399631542,1766575839002,-248.71531821,0.00015311,2]
[399631543,1766575839012,-257.91778498,0.00015311,2]
[399631544,1766575839024,-267.46074303,0.00015311,2]
[399631545,1766575839036,-277.35679052,0.00015311,2]
[399631546,1766575839047,-500.0,0.00015336,2]
[399631547,1766575839058,-500.0,0.00015336,2]
[399631548,1766575839070,-502.99520475,0.00015338,2]
[399631549,1766575839082,-857.45139397,0.00015344,2]
[399631550,1766575839093,-500.0,0.00015363,2]
[399631551,1766575839104,-500.0,0.00015363,2]
[399631552,1766575839114,-928.25173543,0.00015364,2]
[399631553,1766575839125,-500.0,0.00015391,2]
[399631554,1766575839136,-500.0,0.00015391,2]
[399631555,1766575839147,-506.05021686,0.000154,2]
[399631556,1766575839159,-150.0,0.00015401,2]
[399631557,1766575839170,-22139.72971147,0.00015403,2]
[399631558,1766575839180,-501.43291078,0.00015406,2]
[399631559,1766575839190,-15928.09017776,0.00015407,2]
[399631560,1766575839201,-500.0,0.00015418,2]
[399631561,1766575839212,-500.0,0.00015418,2]
[399631562,1766575839222,-255.0,0.00015427,2]
[399631563,1766575839233,-500.0,0.00015446,2]
[399631564,1766575839243,-500.0,0.00015446,2]
[399631565,1766575839254,-500.0,0.00015473,2]
[399631566,1766575839265,-465.63377507,0.00015473,2]
[399631567,1766575839275,-150.0,0.00015476,2]
[399631568,1766575839286,-500.0,0.000155,2]
[399631569,1766575839298,-150.0,0.00015514,2]
[399631570,1766575839310,-263.34853308,0.00015524,2]
[399631571,1766575839321,-500.0,0.00015528,2]
[399631572,1766575839331,-150.0,0.0001553,2]
[399631573,1766575839341,-150.0,0.0001553,2]
[399631574,1766575839351,-150.0,0.0001553,2]
[399631575,1766575839362,-150.0,0.0001553,2]
[399631576,1766575839372,-500.0,0.00015555,2]
[399631577,1766575839382,-16707.49002494,0.00015556,2]
[399631578,1766575839392,-150.0,0.00015571,2]
[399631579,1766575839402,-150.0,0.00015574,2]
[399631581,1766575839412,-500.0,0.00015583,2]
[399631582,1766575839422,-181.2,0.00015585,2]
[399631583,1766575839432,-151.0,0.000156,2]
[399631584,1766575839442,-151.0,0.000156,2]
[399631585,1766575839452,-151.0,0.000156,2]
[399631586,1766575839462,-500.0,0.000156,2]
[399631587,1766575839472,-151.0,0.000156,2]
[399631588,1766575839483,-500.0,0.000156,2]
[399631589,1766575839493,-151.0,0.000156,2]
[399631590,1766575839503,-500.0,0.000156,2]
[399631591,1766575839514,-151.0,0.000156,2]
[399631592,1766575839524,-500.0,0.000156,2]
[399631593,1766575839535,-500.0,0.000156,2]
[399631594,1766575839953,-151.0,0.000156,2]
[399631595,1766575839965,-500.0,0.000156,2]
[399631596,1766575839975,-500.0,0.000156,2]
[399631597,1766575839985,-151.0,0.000156,2]
[399631598,1766575839995,-500.0,0.000156,2]
[399631599,1766575840005,-500.0,0.000156,2]
[399631600,1766575840015,-151.0,0.000156,2]
[399631601,1766575840026,-500.0,0.000156,2]
[399631602,1766575840036,-714.61817831,0.000156,2]
[399631603,1766575840047,-151.0,0.000156,2]
[399631604,1766575840058,-500.0,0.000156,2]
[399631605,1766575840068,-500.0,0.000156,2]
[399631606,1766575840079,-151.0,0.000156,2]
[399631607,1766575840089,-500.0,0.000156,2]
[399631609,1766575840098,-259.02685211,0.000156,2]
[399631611,1766575840108,-151.0,0.000156,2]
[399631613,1766575840118,-500.0,0.000156,2]
[399631615,1766575840127,-151.0,0.000156,2]
[399631617,1766575840138,-500.0,0.000156,2]
[399631619,1766575840148,-151.0,0.000156,2]
[399631621,1766575840158,-500.0,0.000156,2]
[399631623,1766575840167,-151.0,0.000156,2]
[399631625,1766575840177,-500.0,0.000156,2]
[399631627,1766575840188,-151.0,0.000156,2]
[399631629,1766575840198,-500.0,0.000156,2]
[399631631,1766575840209,-500.0,0.000156,2]
[399631633,1766575840219,-250.0,0.000156,2]
[399631635,1766575840229,-250.0,0.000156,2]
[399631637,1766575840240,-250.0,0.000156,2]
[399631639,1766575840250,-620.0,0.000156,2]
[399631641,1766575840260,-250.0,0.000156,2]
[399631642,1766575840270,-500.0,0.000156,2]
[399631645,1766575840280,-250.0,0.000156,2]
[399631646,1766575840291,-500.0,0.000156,2]
[399631649,1766575840301,-250.0,0.000156,2]
[399631651,1766575840310,-500.0,0.000156,2]
[399631653,1766575840320,-500.0,0.000156,2]
[399631654,1766575840330,-261.58626416,0.000156,2]
[399631655,1766575840340,-500.0,0.000156,2]
[399631657,1766575840350,-500.0,0.000156,2]
[399631659,1766575840360,-500.0,0.000156,2]
[399631661,1766575840370,-500.0,0.000156,2]
[399631662,1766575840379,-500.0,0.000156,2]
[399631664,1766575840390,-500.0,0.000156,2]
[399631666,1766575840400,-500.0,0.000156,2]
[399631668,1766575840411,-500.0,0.000156,2]
[399631670,1766575840421,-500.0,0.000156,2]
[399631672,1766575840431,-500.0,0.000156,2]
[399631675,1766575840441,-500.0,0.000156,2]
[399631676,1766575840452,-500.0,0.000156,2]
[399631678,1766575840462,-500.0,0.000156,2]
[399631680,1766575840472,-500.0,0.000156,2]
[399631682,1766575840482,-500.0,0.000156,2]
[399631684,1766575840491,-500.0,0.000156,2]
[399631686,1766575840501,-500.0,0.000156,2]
[399631688,1766575840510,-500.0,0.000156,2]
[399631690,1766575840520,-500.0,0.000156,2]
[399631692,1766575840530,-500.0,0.000156,2]
[399631694,1766575840540,-500.0,0.000156,2]
[399631696,1766575840550,-500.0,0.000156,2]
[399631698,1766575840560,-500.0,0.000156,2]
[399631700,1766575840570,-500.0,0.000156,2]
[399631702,1766575840580,-500.0,0.000156,2]
[399631704,1766575840590,-500.0,0.000156,2]
[399631705,1766575840600,-261.6071653,0.000156,2]
[399631706,1766575840610,-500.0,0.0001561,2]
[399631707,1766575840620,-158.3,0.00015627,2]
[399631708,1766575840630,-150.0,0.00015627,2]
[399631709,1766575840640,-500.0,0.00015637,2]
[399631710,1766575840650,-999.0,0.00015651,3]
[399631711,1766575840660,-1680.0,0.00015659,2]
[399631712,1766575840670,-420.0,0.00015659,2]
[399631713,1766575840681,-500.0,0.00015665,2]
[399631714,1766575840691,-150.0,0.00015665,2]
[399631715,1766575840700,-500.0,0.0001568,2]
[399631716,1766575840710,-2232.0,0.00015685,2]
[399631717,1766575840720,-500.0,0.00015692,2]
[399631718,1766575840731,-1191.16039457,0.00015692,2]
[399631719,1766575840741,-2232.0,0.00015702,2]
[399631720,1766575840752,-22139.72971147,0.00015702,2]
[399631721,1766575840765,-15928.09017776,0.00015705,2]
[399631722,1766575840775,-2232.0,0.00015706,2]
[399631723,1766575840785,-2232.0,0.00015707,2]
[399631724,1766575840796,-500.0,0.0001572,2]
[399631725,1766575840807,-1000.0,0.00015721,2]
[399631726,1766575840817,-1000.0,0.00015721,2]
[399631727,1766575840829,-1000.0,0.00015721,2]
[399631728,1766575840839,-1000.0,0.00015721,2]
[399631729,1766575840849,-1000.0,0.00015721,2]
[399631730,1766575840859,-1000.0,0.00015721,2]
[399631731,1766575840869,-535.67909762,0.00015721,2]
[399631732,1766575840878,-1000.0,0.00015721,2]
[399631733,1766575840889,-1000.0,0.00015721,2]
[399631734,1766575840899,-1000.0,0.00015721,2]
[399631735,1766575840909,-1000.0,0.00015721,2]
[399631736,1766575840920,-1000.0,0.00015721,2]
[399631737,1766575840929,-1000.0,0.00015721,2]
[399631738,1766575840939,-1000.0,0.00015721,2]
[399631739,1766575840950,-537.6086795,0.00015721,2]
[399631740,1766575840960,-501.75154146,0.00015721,2]
[399631741,1766575840970,-1000.0,0.00015721,2]
[399631742,1766575840980,-1000.0,0.00015721,2]
[399631743,1766575840991,-1000.0,0.00015721,2]
[399631744,1766575841001,-1000.0,0.00015721,2]
[399631745,1766575841012,-1001.56481773,0.00015721,2]
[399631746,1766575841022,-1000.0,0.00015721,2]
[399631747,1766575841032,-304.45148549,0.00015721,2]
[399631748,1766575841042,-659.04345804,0.00015721,2]
[399631749,1766575841053,-1000.0,0.00015721,2]
[399631750,1766575841063,-1000.0,0.00015721,2]
[399631751,1766575841073,-366.77928753,0.00015721,2]
[399631752,1766575841083,-1000.0,0.00015721,2]
[399631753,1766575841093,-1144.90304648,0.00015721,2]
[399631754,1766575841103,-1680.0,0.00015727,2]
[399631755,1766575841113,-300.0,0.00015728,2]
[399631756,1766575841123,-195.0,0.00015728,2]
[399631757,1766575841133,-300.0,0.00015728,2]
[399631758,1766575841144,-250.0,0.00015728,2]
[399631759,1766575841154,-600.0,0.00015728,2]
[399631760,1766575841164,-193.0,0.00015728,2]
[399631761,1766575841174,-2500.0,0.00015728,2]
[399631762,1766575841185,-600.0,0.00015728,2]
[399631763,1766575841195,-5000.0,0.00015728,4]
[399631764,1766575841206,-300.0,0.00015728,2]
[399631765,1766575841216,-151.0,0.00015729,2]
[399631766,1766575841226,-151.0,0.00015729,2]
[399631767,1766575841236,-150.0,0.00015741,2]
[399631768,1766575841246,-500.0,0.00015747,2]
[399631769,1766575841257,-928.25173543,0.00015748,2]
[399631770,1766575841267,-151.0,0.00015752,2]
[399631771,1766575841277,-151.0,0.00015766,2]
[399631772,1766575841288,-151.0,0.00015766,2]
[399631773,1766575841298,-151.0,0.00015766,2]
[399631774,1766575841307,-150.0,0.00015773,2]
[399631775,1766575841317,-150.0,0.00015773,2]
[399631776,1766575841326,-150.0,0.00015773,2]
[399631777,1766575841337,-150.0,0.00015773,2]
[399631778,1766575841347,-500.0,0.00015774,2]
[399631779,1766575841357,-500.0,0.00015802,2]
[399631780,1766575841367,-2229.87975614,0.00015807,2]
[399631781,1766575841376,-466.21768034,0.00015829,2]
[399631782,1766575841386,-150.0,0.00015854,2]
[399631783,1766575841396,-150.0,0.00015854,2]
[399631784,1766575841406,-150.0,0.00015854,2]
[399631785,1766575841415,-150.0,0.00015854,2]
[399631786,1766575841425,-150.0,0.00015854,2]
[399631787,1766575841435,-150.0,0.00015854,2]
[399631788,1766575841444,-150.0,0.00015967,2]
[399631789,1766575841454,-2232.0,0.00015974,2]
[399631790,1766575841463,-2232.0,0.00015978,2]
[399631791,1766575841474,-23728.3415903,0.00016,2]
[399631792,1766575841484,-441.08570001,0.00016,2]
[399631793,1766575841494,-46980.70129556,0.00016,2]
[399631794,1766575841504,-22139.72971147,0.00016002,2]
[399631795,1766575841514,-15928.09017776,0.00016004,2]
[399631796,1766575841523,-150.0,0.00016016,2]
[399631797,1766575841533,-150.0,0.00016016,2]
[399631798,1766575841543,-150.0,0.00016016,2]
[399631799,1766575841554,-150.0,0.00016016,2]
[399631800,1766575841563,-150.0,0.00016043,2]
[399631801,1766575841573,-2232.0,0.00016077,2]
[399631802,1766575841583,-150.0,0.0001608,2]
[399631803,1766575841593,-2232.0,0.00016101,2]
[399631804,1766575841603,-928.25173543,0.00016132,2]
[399631805,1766575841613,-150.0,0.00016137,2]
[399631806,1766575841624,-4652.0,0.00016147,2]
[399631807,1766575841634,-2232.0,0.00016162,2]
[399631808,1766575841643,-150.0,0.00016194,2]
[399631809,1766575841654,-5000.00110317,0.000162,5]
[399631810,1766575841663,-150.0,0.00016231,2]
[399631811,1766575841674,-1000.0,0.00016238,2]
[399631812,1766575841684,-1000.0,0.00016238,2]
[399631813,1766575841694,-1000.0,0.00016238,2]
[399631814,1766575841705,-751.847,0.00016238,2]
[399631815,1766575841715,-2232.0,0.00016247,2]
[399631816,1766575841725,-5888.0,0.0001625,2]
[399631817,1766575841734,-150.0,0.00016258,2]
[399631818,1766575841743,-150.0,0.00016258,2]
[399631819,1766575841754,-150.0,0.00016258,2]
[399631820,1766575841766,-150.0,0.00016258,2]
[399631821,1766575841776,-1000.0,0.00016267,2]
[399631822,1766575841786,-1000.0,0.00016267,2]
[399631823,1766575841796,-1000.0,0.00016267,2]
[399631824,1766575841807,-717.647,0.00016267,2]
[399631825,1766575841817,-1000.0,0.00016267,2]
[399631826,1766575841827,-935.246,0.00016267,2]
[399631827,1766575841836,-437.14852253,0.00016268,2]
[399631828,1766575841846,-1152.24771279,0.00016268,2]
[399631829,1766575841856,-1466.73216774,0.00016268,2]
[399631830,1766575841866,-1502.21103807,0.00016268,2]
[399631831,1766575841876,-1500.0,0.00016268,2]
[399631832,1766575841886,-1500.0,0.00016268,2]
[399631833,1766575841897,-659.61432389,0.00016268,2]
[399631834,1766575841908,-1500.0,0.00016268,2]
[399631835,1766575841918,-1500.0,0.00016268,2]
[399631836,1766575841928,-1459.78950383,0.00016268,2]
[399631837,1766575841938,-1505.01239591,0.00016268,2]
[399631838,1766575841948,-1500.0,0.00016268,2]
[399631839,1766575841959,-1500.0,0.00016268,2]
[399631840,1766575841969,-890.7850892,0.00016268,2]
[399631841,1766575841979,-1500.0,0.00016268,2]
[399631842,1766575841990,-1500.0,0.00016268,2]
[399631843,1766575842000,-1500.0,0.00016268,2]
[399631844,1766575842010,-1500.0,0.00016268,2]
[399631845,1766575842020,-2232.0,0.00016285,2]
[399631846,1766575842030,-2232.0,0.00016291,2]
[399631847,1766575842041,-22139.72971147,0.00016301,2]
[399631848,1766575842051,-15928.09017776,0.00016303,2]
[399631849,1766575842061,-150.0,0.00016307,2]
[399631850,1766575842072,-263.34853308,0.00016338,2]
[399631851,1766575842083,-150.0,0.0001642,2]
[399631852,1766575842093,-150.0,0.0001642,2]
[399631853,1766575842103,-150.0,0.0001642,2]
[399631854,1766575842113,-150.0,0.0001642,2]
[399631855,1766575842123,-150.0,0.0001642,2]
[399631856,1766575842135,-150.0,0.0001642,2]
[399631857,1766575842146,-1816.57,0.00016428,2]
[399631858,1766575842156,-1360.68929456,0.00016438,2]
[399631859,1766575842166,-1360.68929456,0.00016438,2]
[399631860,1766575842176,-1360.68929456,0.00016438,2]
[399631861,1766575842187,-1360.68929456,0.00016438,2]
[399631862,1766575842197,-1360.68929456,0.00016438,2]
[399631863,1766575842208,-1360.68929456,0.00016438,2]
[399631864,1766575842218,-1360.68929456,0.00016438,2]
[399631865,1766575842228,-1360.68929456,0.00016438,2]
[399631866,1766575842238,-1360.68929456,0.00016438,2]
[399631867,1766575842248,-1360.68929456,0.00016438,2]
[399631868,1766575842258,-1360.68929456,0.00016438,2]
[399631869,1766575842268,-1360.68929456,0.00016438,2]
[399631870,1766575842278,-1360.68929456,0.00016438,2]
[399631871,1766575842287,-1360.68929456,0.00016438,2]
[399631872,1766575842298,-1360.68929456,0.00016438,2]
[399631873,1766575842308,-1360.68929456,0.00016438,2]
[399631874,1766575842318,-1360.68929456,0.00016438,2]
[399631875,1766575842327,-1360.68929456,0.00016438,2]
[399631876,1766575842338,-1360.68929456,0.00016438,2]
[399631877,1766575842347,-1360.68929456,0.00016438,2]
[399631878,1766575842357,-1360.68929456,0.00016438,2]
[399631879,1766575842367,-1360.68929456,0.00016438,2]
[399631880,1766575842377,-1360.68929456,0.00016438,2]
[399631881,1766575842387,-1360.68929456,0.00016438,2]
[399631882,1766575842398,-1360.68929456,0.00016438,2]
[399631883,1766575842408,-1360.68929456,0.00016438,2]
[399631884,1766575842419,-1360.68929456,0.00016438,2]
[399631885,1766575842429,-1360.68929456,0.00016438,2]
[399631886,1766575842439,-1360.68929456,0.00016438,2]
[399631887,1766575842449,-1360.68929456,0.00016438,2]
[399631888,1766575842459,-1360.68929456,0.00016438,2]
[399631889,1766575842469,-1360.68929456,0.00016438,2]
[399631890,1766575842479,-1360.68929456,0.00016438,2]
[399631891,1766575842489,-1360.68929456,0.00016438,2]
[399631892,1766575842499,-1360.68929456,0.00016438,2]
[399631893,1766575842510,-1360.68929456,0.00016438,2]
[399631894,1766575842520,-1360.68929456,0.00016438,2]
[399631895,1766575842530,-1360.68929456,0.00016438,2]
[399631896,1766575842541,-1360.68929456,0.00016438,2]
[399631898,1766575842551,-1360.68929456,0.00016438,2]
[399631899,1766575842562,-1360.68929456,0.00016438,2]
[399631900,1766575842572,-1360.68929456,0.00016438,2]
[399631901,1766575842582,-1360.68929456,0.00016438,2]
[399631902,1766575842592,-1360.68929456,0.00016438,2]
[399631903,1766575842603,-1360.68929456,0.00016438,2]
[399631904,1766575842613,-1360.68929456,0.00016438,2]
[399631905,1766575842624,-1360.68929456,0.00016438,2]
[399631906,1766575842634,-1360.68929456,0.00016438,2]
[399631907,1766575842645,-1360.68929456,0.00016438,2]
[399631908,1766575842658,-1360.68929456,0.00016438,2]
[399631909,1766575842669,-1360.68929456,0.00016438,2]
[399631910,1766575842684,-1360.68929456,0.00016438,2]
[399631911,1766575842705,-1360.68929456,0.00016438,2]
[399631912,1766575842715,-1360.68929456,0.00016438,2]
[399631913,1766575842726,-1360.68929456,0.00016438,2]
[399631914,1766575842736,-1360.68929456,0.00016438,2]
[399631915,1766575842746,-1360.68929456,0.00016438,2]
[399631916,1766575842761,-1360.68929456,0.00016438,2]
[399631917,1766575842772,-1360.68929456,0.00016438,2]
[399631918,1766575842783,-1360.68929456,0.00016438,2]
[399631919,1766575842794,-1360.68929456,0.00016438,2]
[399631920,1766575842804,-1360.68929456,0.00016438,2]
[399631921,1766575842814,-1360.68929456,0.00016438,2]
[399631922,1766575842825,-1360.68929456,0.00016438,2]
[399631923,1766575842838,-1360.68929456,0.00016438,2]
[399631924,1766575842849,-1360.68929456,0.00016438,2]
[399631925,1766575842859,-1360.68929456,0.00016438,2]
[399631926,1766575842869,-1360.68929456,0.00016438,2]
[399631927,1766575842879,-1360.68929456,0.00016438,2]
[399631928,1766575842888,-1360.68929456,0.00016438,2]
[399631929,1766575842899,-1353.52777197,0.00016438,2]
[399631930,1766575842910,-1353.52777197,0.00016438,2]